Workbook

Sheet INGRESO DE DATOS
A10: (Para renovaciones de pólizas emitidas en 2020)
A13: LLENE LA INFORMACIÓN DEL ASEGURADO PROPUESTO:
B15: Nombre del Asegurado Titular: | D15: NOMBRE COMPLETO
B17: Número de adultos en la póliza: | D17: 2 | F17: Número de niños en la póliza: | H17: 2
B19: Edad del Asegurado Titular: | D19: 32 | F19: Edad del/la cónyuge : | H19: 46
B26: 1 | D26: 1

Sheet Global Premier
A16: GLOBAL PREMIER HEALTH PLAN
D17: Nombre del Asegurado Titular: | F17: =+'INGRESO DE DATOS'!$D$15 -> NOMBRE COMPLETO
D19: Número de adultos en la póliza: | F19: =+'INGRESO DE DATOS'!$D$17 -> 2 | H19: Edad del Asegurado Titular: | I19: =+'INGRESO DE DATOS'!$D$19 -> 32
D21: Número de niños en la póliza: | F21: =+'INGRESO DE DATOS'!$H$17 -> 2 | H21: Edad del/la conyuge: | I21: =+'INGRESO DE DATOS'!$H$19 -> 46
H23: Fecha de la cotización: | I23: =NOW() -> 2022-11-29T15:01:33.290
H24: FALSE
E25: Deducibles | G25: PLAN 1 | H25: PLAN 2 | I25: PLAN 3 | J25: PLAN 4
E26: En el país de residencia | G26: 250 | H26: 2000 | I26: 5000 | J26: 10000
E27: Fuera del país de residencia | G27: 5000 | H27: 2000 | I27: 5000 | J27: 10000
E29: Tarifas anuales
E30: Prima para Asegurado Titular | G30: =VLOOKUP($I$19,Tablas!$A$155:$G$221,3,TRUE) -> 5565.8 | H30: =VLOOKUP($I$19,Tablas!$A$155:$G$221,4,TRUE) -> 5051.55 | I30: =VLOOKUP($I$19,Tablas!$A$155:$G$221,5,TRUE) -> 3643.95 | J30: =VLOOKUP($I$19,Tablas!$A$155:$G$221,6,TRUE) -> 2638.4
E31: Prima para conyuge | G31: =IF($F$19=1,0,(VLOOKUP($I$21,Tablas!$A$155:$G$221,3,TRUE))) -> 7633 | H31: =IF($F$19=1,0,(VLOOKUP($I$21,Tablas!$A$155:$G$221,4,TRUE))) -> 6926.65 | I31: =IF($F$19=1,0,(VLOOKUP($I$21,Tablas!$A$155:$G$221,5,TRUE))) -> 4888.35 | J31: =IF($F$19=1,0,(VLOOKUP($I$21,Tablas!$A$155:$G$221,6,TRUE))) -> 3537.7
E32: Prima para hijo (s) | G32: =IF($F$21=0,0,(VLOOKUP($F$21,Tablas!$A$222:$G$224,3,TRUE))) -> 3371.1 | H32: =IF($F$21=0,0,(VLOOKUP($F$21,Tablas!$A$222:$G$224,4,TRUE))) -> 3057.45 | I32: =IF($F$21=0,0,(VLOOKUP($F$21,Tablas!$A$222:$G$224,5,TRUE))) -> 2288.2 | J32: =IF($F$21=0,0,(VLOOKUP($F$21,Tablas!$A$222:$G$224,6,TRUE))) -> 1658.35
E33: Total de Prima neta | G33: =SUM(G30:G32) -> 16569.9 | H33: =SUM(H30:H32) -> 15035.65 | I33: 10820.5 | J33: =SUM(J30:J32) -> 7834.45
E34: Tarifa administrativa anual | G34: 75 | H34: 75 | I34: 75 | J34: 75
E35: IVA (12%) | G35: =(G33+G34)*12% -> 1997.388 | H35: =(H33+H34)*12% -> 1813.278 | I35: 1307.46 | J35: =(J33+J34)*12% -> 949.134
E36: TOTAL ANUAL | G36: =SUM(G33:G35) -> 18642.288 | H36: =SUM(H33:H35) -> 16923.928 | I36: =SUM(I33:I35) -> 12202.96 | J36: =SUM(J33:J35) -> 8858.584
E38: Tarifas semi anuales
E39: Prima para Asegurado Titular | G39: =VLOOKUP($I$19,Tablas!$A$530:$G$596,3,TRUE) -> 2949.874 | H39: =VLOOKUP($I$19,Tablas!$A$530:$G$596,4,TRUE) -> 2677.3215 | I39: =VLOOKUP($I$19,Tablas!$A$530:$G$596,5,TRUE) -> 1931.2935 | J39: =VLOOKUP($I$19,Tablas!$A$530:$G$596,6,TRUE) -> 1398.352
E40: Prima para conyuge | G40: =IF($F$19=1,0,(VLOOKUP($I$21,Tablas!$A$530:$G$596,3,TRUE))) -> 4045.49 | H40: =IF($F$19=1,0,(VLOOKUP($I$21,Tablas!$A$530:$G$596,4,TRUE))) -> 3671.1245 | I40: =IF($F$19=1,0,(VLOOKUP($I$21,Tablas!$A$530:$G$596,5,TRUE))) -> 2590.8255 | J40: =IF($F$19=1,0,(VLOOKUP($I$21,Tablas!$A$530:$G$596,6,TRUE))) -> 1874.981
E41: Prima para hijo (s) | G41: =IF($F$21=0,0,(VLOOKUP($F$21,Tablas!$A$597:$G$599,3,TRUE))) -> 1786.683 | H41: =IF($F$21=0,0,(VLOOKUP($F$21,Tablas!$A$597:$G$599,4,TRUE))) -> 1620.4485 | I41: =IF($F$21=0,0,(VLOOKUP($F$21,Tablas!$A$597:$G$599,5,TRUE))) -> 1212.746 | J41: =IF($F$21=0,0,(VLOOKUP($F$21,Tablas!$A$597:$G$599,6,TRUE))) -> 878.9255
E42: Total de Prima neta | G42: =SUM(G39:G41) -> 8782.047 | H42: =SUM(H39:H41) -> 7968.8945 | I42: =SUM(I39:I41) -> 5734.865 | J42: =SUM(J39:J41) -> 4152.2585
E43: Tarifa administrativa anual | G43: 75 | H43: 75 | I43: 75 | J43: 75
E44: IVA (12%) | G44: =(G42+G43)*12% -> 1062.84564 | H44: =(H42+H43)*12% -> 965.26734 | I44: 697.1838 | J44: =(J42+J43)*12% -> 507.27102
E45: TOTAL de primera cuota | G45: =SUM(G42:G44) -> 9919.89264 | H45: =SUM(H42:H44) -> 9009.16184 | I45: =SUM(I42:I44) -> 6507.0488 | J45: =SUM(J42:J44) -> 4734.52952
E46: Costo de segunda cuota | G46: =G42+G44 - G43*12% -> 9835.89264 | H46: =H42+H44 - H43*12% -> 8925.16184 | I46: 6423.0488 | J46: =J42+J44 - J43*12% -> 4650.52952
E47: TOTAL ANUAL | G47: =G45+G46 -> 19755.78528 | H47: =H45+H46 -> 17934.32368 | I47: 12930.0976 | J47: =J45+J46 -> 9385.05904
E49: Tarifas trimestrales
E50: Prima para Asegurado Titular | G50: =VLOOKUP($I$19,Tablas!$A$755:$G$821,3,TRUE) -> 1530.595 | H50: =VLOOKUP($I$19,Tablas!$A$755:$G$821,4,TRUE) -> 1389.17625 | I50: =VLOOKUP($I$19,Tablas!$A$755:$G$821,5,TRUE) -> 1002.08625 | J50: =VLOOKUP($I$19,Tablas!$A$755:$G$821,6,TRUE) -> 725.56
E51: Prima para conyuge | G51: =IF($F$19=1,0,(VLOOKUP($I$21,Tablas!$A$755:$G$821,3,TRUE))) -> 2099.075 | H51: =IF($F$19=1,0,(VLOOKUP($I$21,Tablas!$A$755:$G$821,4,TRUE))) -> 1904.82875 | I51: =IF($F$19=1,0,(VLOOKUP($I$21,Tablas!$A$755:$G$821,5,TRUE))) -> 1344.29625 | J51: =IF($F$19=1,0,(VLOOKUP($I$21,Tablas!$A$755:$G$821,6,TRUE))) -> 972.8675
E52: Prima para hijo (s) | G52: =IF($F$21=0,0,(VLOOKUP($F$21,Tablas!$A$822:$G$824,3,TRUE))) -> 927.0525 | H52: =IF($F$21=0,0,(VLOOKUP($F$21,Tablas!$A$822:$G$824,4,TRUE))) -> 840.79875 | I52: =IF($F$21=0,0,(VLOOKUP($F$21,Tablas!$A$822:$G$824,5,TRUE))) -> 629.255 | J52: =IF($F$21=0,0,(VLOOKUP($F$21,Tablas!$A$822:$G$824,6,TRUE))) -> 456.04625
E53: Total de Prima neta | G53: =SUM(G50:G52) -> 4556.7225 | H53: =SUM(H50:H52) -> 4134.80375 | I53: =SUM(I50:I52) -> 2975.6375 | J53: =SUM(J50:J52) -> 2154.47375
E54: Tarifa administrativa anual | G54: 75 | H54: 75 | I54: 75 | J54: 75
E55: IVA (12%) | G55: =(G53+G54)*12% -> 555.8067 | H55: =(H53+H54)*12% -> 505.17645 | I55: 366.0765 | J55: =(J53+J54)*12% -> 267.53685
E56: TOTAL de primera cuota | G56: =SUM(G53:G55) -> 5187.5292 | H56: =SUM(H53:H55) -> 4714.9802 | I56: =SUM(I53:I55) -> 3416.714 | J56: =SUM(J53:J55) -> 2497.0106
E57: Costo de tarifa trimestral 2 a 4 | G57: =G53+G55 - G54*12% -> 5103.5292 | H57: =H53+H55 - H54*12% -> 4630.9802 | I57: 3332.714 | J57: =J53+J55 - J54*12% -> 2413.0106
E58: TOTAL ANUAL | G58: =G56+(G57*3) -> 20498.1168 | H58: =H56+(H57*3) -> 18607.9208 | I58: 13414.856 | J58: =J56+(J57*3) -> 9736.0424
E61: Tarifas en US $ - Efectivas a partir del 1ro de enero de 2023
E62: Este presupuesto solamente tiene carácter informativo y en ningún momento expresa compromiso legal para suministrarle cobertura de seguro. La emisión de una póliza de seguro Bupa está sujeta a todas las evaluaciones de riesgo por parte de Bupa y a la recepción de todos los pagos de prima requeridos.

Sheet Resumen tarifas
A27: Cotizador de Seguro Médico - Bupa Global Health Plans
A29: Nombre del Asegurado Titular | C29: =+'INGRESO DE DATOS'!$D$15 -> NOMBRE COMPLETO
A32: Número de adultos en la póliza | C32: =+'INGRESO DE DATOS'!$D$17 -> 2 | E32: Edad del Asegurado Titular | G32: =+'INGRESO DE DATOS'!$D$19 -> 32
A35: Número de niños en la póliza | C35: =+'INGRESO DE DATOS'!$H$17 -> 2 | E35: Edad del/la cónyuge | G35: =+'INGRESO DE DATOS'!$H$19 -> 46
D38: FECHA DE LA COTIZACIÓN : | E38: =NOW() -> 2022-11-29T15:01:33.290
A41: Global Premier Health Plan
A42: Deducibles | E42: PLAN 1 | F42: PLAN 2 | G42: PLAN 3 | H42: PLAN 3
A43: En el país de residencia | E43: 250 | F43: 2000 | G43: 5000 | H43: 10000
A44: Fuera del país de residencia | E44: 5000 | F44: 2000 | G44: 5000 | H44: 10000
E45: Tarifas anuales
E46: =+'Global Premier'!G36 -> 18642.288 | F46: =+'Global Premier'!H36 -> 16923.928 | G46: =+'Global Premier'!I36 -> 12202.96 | H46: =+'Global Premier'!J36 -> 8858.584
E47: Tarifas semi anuales
E48: =+'Global Premier'!G45 -> 9919.89264 | F48: =+'Global Premier'!H45 -> 9009.16184 | G48: =+'Global Premier'!I45 -> 6507.0488 | H48: =+'Global Premier'!J45 -> 4734.52952
E49: =+'Global Premier'!G46 -> 9835.89264 | F49: =+'Global Premier'!H46 -> 8925.16184 | G49: =+'Global Premier'!I46 -> 6423.0488 | H49: =+'Global Premier'!J46 -> 4650.52952
E50: Tarifas trimestrales
E51: =+'Global Premier'!G56 -> 5187.5292 | F51: =+'Global Premier'!H56 -> 4714.9802 | G51: =+'Global Premier'!I56 -> 3416.714 | H51: =+'Global Premier'!J56 -> 2497.0106
E52: =+'Global Premier'!G57 -> 5103.5292 | F52: =+'Global Premier'!H57 -> 4630.9802 | G52: =+'Global Premier'!I57 -> 3332.714 | H52: =+'Global Premier'!J57 -> 2413.0106
A55: Una tarifa administrativa de US$75 se carga automáticamente al primer pago
A56: *Basado en un modo de pago anual
A59: Tarifas en US $ - Efectivas a partir del 1ro de enero de 2023
A60: Este presupuesto solamente tiene carácter informativo y en ningún momento expresa compromiso legal para suministrarle cobertura de seguro. La emisión de una póliza de seguro Bupa está sujeta a todas las evaluaciones de riesgo por parte de Bupa y a la recepción de todos los pagos de prima requeridos.

Sheet Tablas (hidden)
A2: BUPA GLOBAL ELITE | I2: FACTOR MENSUAL: | K2: =1.12/12 -> 0.09333333333
A3: TARIFAS ANUALES | I3: FACTOR TRIMESTRAL: | K3: =1.1/4 -> 0.275
A4: EDAD | I4: FACTOR SEMIANUAL: | K4: =1.06/2 -> 0.53
C5: 1000 | D5: 2000 | E5: 3500 | F5: 5000 | G5: 10000 | M5: 1000 | N5: 2000 | O5: 3500 | P5: 5000 | Q5: 10000 | R5: 1000 | S5: 2000 | T5: 3500 | U5: 5000 | V5: 10000
A77: BUPA GLOBAL ELITE - MENSUALES | H77: ?
A78: EDAD
C79: 1000 | D79: 2000 | E79: 3500
A80: 18 | C80: =+C6*$K$2 -> 0 | D80: =+D6*$K$2 -> 0 | E80: 0 | F80: 0 | G80: 0
A81: 19 | C81: =+C7*$K$2 -> 0 | D81: 0 | E81: 0 | F81: 0 | G81: 0
A82: 20 | C82: =+C8*$K$2 -> 0 | D82: 0 | E82: 0 | F82: 0 | G82: 0
A83: 21 | C83: =+C9*$K$2 -> 0 | D83: 0 | E83: 0 | F83: 0 | G83: 0
A84: 22 | C84: =+C10*$K$2 -> 0 | D84: 0 | E84: 0 | F84: 0 | G84: 0
A85: 23 | C85: =+C11*$K$2 -> 0 | D85: 0 | E85: 0 | F85: 0 | G85: 0
A86: 24 | C86: =+C12*$K$2 -> 0 | D86: 0 | E86: 0 | F86: 0 | G86: 0
A87: 25 | C87: =+C13*$K$2 -> 0 | D87: 0 | E87: 0 | F87: 0 | G87: 0
A88: 26 | C88: =+C14*$K$2 -> 0 | D88: 0 | E88: 0 | F88: 0 | G88: 0
A89: 27 | C89: =+C15*$K$2 -> 0 | D89: 0 | E89: 0 | F89: 0 | G89: 0
A90: 28 | C90: =+C16*$K$2 -> 0 | D90: 0 | E90: 0 | F90: 0 | G90: 0
A91: 29 | C91: =+C17*$K$2 -> 0 | D91: 0 | E91: 0 | F91: 0 | G91: 0
A92: 30 | C92: =+C18*$K$2 -> 0 | D92: 0 | E92: 0 | F92: 0 | G92: 0
A93: 31 | C93: =+C19*$K$2 -> 0 | D93: 0 | E93: 0 | F93: 0 | G93: 0
A94: 32 | C94: =+C20*$K$2 -> 0 | D94: 0 | E94: 0 | F94: 0 | G94: 0
A95: 33 | C95: =+C21*$K$2 -> 0 | D95: 0 | E95: 0 | F95: 0 | G95: 0
A96: 34 | C96: =+C22*$K$2 -> 0 | D96: 0 | E96: 0 | F96: 0 | G96: 0
A97: 35 | C97: =+C23*$K$2 -> 0 | D97: 0 | E97: 0 | F97: 0 | G97: 0
A98: 36 | C98: =+C24*$K$2 -> 0 | D98: 0 | E98: 0 | F98: 0 | G98: 0
A99: 37 | C99: =+C25*$K$2 -> 0 | D99: 0 | E99: 0 | F99: 0 | G99: 0
A100: 38 | C100: =+C26*$K$2 -> 0 | D100: 0 | E100: 0 | F100: 0 | G100: 0
A101: 39 | C101: =+C27*$K$2 -> 0 | D101: 0 | E101: 0 | F101: 0 | G101: 0
A102: 40 | C102: =+C28*$K$2 -> 0 | D102: 0 | E102: 0 | F102: 0 | G102: 0
A103: 41 | C103: =+C29*$K$2 -> 0 | D103: 0 | E103: 0 | F103: 0 | G103: 0
A104: 42 | C104: =+C30*$K$2 -> 0 | D104: 0 | E104: 0 | F104: 0 | G104: 0
A105: 43 | C105: =+C31*$K$2 -> 0 | D105: 0 | E105: 0 | F105: 0 | G105: 0
A106: 44 | C106: =+C32*$K$2 -> 0 | D106: 0 | E106: 0 | F106: 0 | G106: 0
A107: 45 | C107: =+C33*$K$2 -> 0 | D107: 0 | E107: 0 | F107: 0 | G107: 0
A108: 46 | C108: =+C34*$K$2 -> 0 | D108: 0 | E108: 0 | F108: 0 | G108: 0
A109: 47 | C109: =+C35*$K$2 -> 0 | D109: 0 | E109: 0 | F109: 0 | G109: 0
A110: 48 | C110: =+C36*$K$2 -> 0 | D110: 0 | E110: 0 | F110: 0 | G110: 0
A111: 49 | C111: =+C37*$K$2 -> 0 | D111: 0 | E111: 0 | F111: 0 | G111: 0
A112: 50 | C112: =+C38*$K$2 -> 0 | D112: 0 | E112: 0 | F112: 0 | G112: 0
A113: 51 | C113: =+C39*$K$2 -> 0 | D113: 0 | E113: 0 | F113: 0 | G113: 0
A114: 52 | C114: =+C40*$K$2 -> 0 | D114: 0 | E114: 0 | F114: 0 | G114: 0
A115: 53 | C115: =+C41*$K$2 -> 0 | D115: 0 | E115: 0 | F115: 0 | G115: 0
A116: 54 | C116: =+C42*$K$2 -> 0 | D116: 0 | E116: 0 | F116: 0 | G116: 0
A117: 55 | C117: =+C43*$K$2 -> 0 | D117: 0 | E117: 0 | F117: 0 | G117: 0
A118: 56 | C118: =+C44*$K$2 -> 0 | D118: 0 | E118: 0 | F118: 0 | G118: 0
A119: 57 | C119: =+C45*$K$2 -> 0 | D119: 0 | E119: 0 | F119: 0 | G119: 0
A120: 58 | C120: =+C46*$K$2 -> 0 | D120: 0 | E120: 0 | F120: 0 | G120: 0
A121: 59 | C121: =+C47*$K$2 -> 0 | D121: 0 | E121: 0 | F121: 0 | G121: 0
A122: 60 | C122: =+C48*$K$2 -> 0 | D122: 0 | E122: 0 | F122: 0 | G122: 0
A123: 61 | C123: =+C49*$K$2 -> 0 | D123: 0 | E123: 0 | F123: 0 | G123: 0
A124: 62 | C124: =+C50*$K$2 -> 0 | D124: 0 | E124: 0 | F124: 0 | G124: 0
A125: 63 | C125: =+C51*$K$2 -> 0 | D125: 0 | E125: 0 | F125: 0 | G125: 0
A126: 64 | C126: =+C52*$K$2 -> 0 | D126: 0 | E126: 0 | F126: 0 | G126: 0
A127: 65 | C127: =+C53*$K$2 -> 0 | D127: 0 | E127: 0 | F127: 0 | G127: 0
A128: 66 | C128: =+C54*$K$2 -> 0 | D128: 0 | E128: 0 | F128: 0 | G128: 0
A129: 67 | C129: =+C55*$K$2 -> 0 | D129: 0 | E129: 0 | F129: 0 | G129: 0
A130: 68 | C130: =+C56*$K$2 -> 0 | D130: 0 | E130: 0 | F130: 0 | G130: 0
A131: 69 | C131: =+C57*$K$2 -> 0 | D131: 0 | E131: 0 | F131: 0 | G131: 0
A132: 70 | C132: =+C58*$K$2 -> 0 | D132: 0 | E132: 0 | F132: 0 | G132: 0
A133: 71 | C133: =+C59*$K$2 -> 0 | D133: 0 | E133: 0 | F133: 0 | G133: 0
A134: 72 | C134: =+C60*$K$2 -> 0 | D134: 0 | E134: 0 | F134: 0 | G134: 0
A135: 73 | C135: =+C61*$K$2 -> 0 | D135: 0 | E135: 0 | F135: 0 | G135: 0
A136: 74 | C136: =+C62*$K$2 -> 0 | D136: 0 | E136: 0 | F136: 0 | G136: 0
A137: 75 | C137: =+C63*$K$2 -> 0 | D137: 0 | E137: 0 | F137: 0 | G137: 0
A138: 76 | C138: =+C64*$K$2 -> 0 | D138: 0 | E138: 0 | F138: 0 | G138: 0
A139: 77 | C139: =+C65*$K$2 -> 0 | D139: 0 | E139: 0 | F139: 0 | G139: 0
A140: 78 | C140: =+C66*$K$2 -> 0 | D140: 0 | E140: 0 | F140: 0 | G140: 0
A141: 79 | C141: =+C67*$K$2 -> 0 | D141: 0 | E141: 0 | F141: 0 | G141: 0
A142: 80 | C142: =+C68*$K$2 -> 0 | D142: 0 | E142: 0
A143: 81 | C143: =+C69*$K$2 -> 0 | D143: 0 | E143: 0
A144: 82 | C144: =+C70*$K$2 -> 0 | D144: 0 | E144: 0
A145: 83 | C145: =+C71*$K$2 -> 0 | D145: 0 | E145: 0
A146: 84 | B146: o más | C146: =+C72*$K$2 -> 0 | D146: 0 | E146: 0 | F146: 0 | G146: 0
A147: 1 | B147: Hijo | C147: =+C73*$K$2 -> 0 | D147: 0 | E147: 0 | F147: 0 | G147: 0
A148: 2 | B148: Hijos | C148: =+C74*$K$2 -> 0 | D148: 0 | E148: 0 | F148: 0 | G148: 0
A149: 3 | B149: Hijos o más | C149: =+C75*$K$2 -> 0 | D149: 0 | E149: 0 | F149: 0 | G149: 0
A151: BUPA GLOBAL PREMIER
A152: TARIFAS ANUALES
A153: EDAD
C154: 2000 | D154: 3500 | E154: 5000 | F154: 10000 | M154: 2000 | N154: 3500 | O154: 5000 | P154: 10000
A155: 18 | C155: =R155 -> 4403.85 | D155: =S155 -> 3998.4 | E155: 2991.15 | F155: 2164.1 | G155: =Q155*$K$6 -> 0 | M155: 5181 | N155: 4704 | O155: 3519 | P155: 2546 | R155: =M155*0.85 -> 4403.85 | S155: =N155*0.85 -> 3998.4 | T155: 2991.15 | U155: 2164.1
A156: 19 | C156: =R156 -> 4459.95 | D156: =S156 -> 4047.7 | E156: =T156 -> 3018.35 | F156: =U156 -> 2184.5 | G156: =Q156*$K$6 -> 0 | M156: 5247 | N156: 4762 | O156: 3551 | P156: 2570 | R156: =M156*0.85 -> 4459.95 | S156: =N156*0.85 -> 4047.7 | T156: =O156*0.85 -> 3018.35 | U156: =P156*0.85 -> 2184.5
A157: 20 | C157: 4514.35 | D157: 4096.15 | E157: 3049.8 | F157: 2207.45 | G157: 0 | M157: 5311 | N157: 4819 | O157: 3588 | P157: 2597 | R157: 4514.35 | S157: 4096.15 | T157: 3049.8 | U157: 2207.45
A158: 21 | C158: 4572.15 | D158: 4147.15 | E158: 3081.25 | F158: 2230.4 | G158: 0 | M158: 5379 | N158: 4879 | O158: 3625 | P158: 2624 | R158: 4572.15 | S158: 4147.15 | T158: 3081.25 | U158: 2230.4
A159: 22 | C159: 4629.1 | D159: 4204.1 | E159: 3112.7 | F159: 2254.2 | G159: 0 | M159: 5446 | N159: 4946 | O159: 3662 | P159: 2652 | R159: 4629.1 | S159: 4204.1 | T159: 3112.7 | U159: 2254.2
A160: 23 | C160: 4691.15 | D160: 4258.5 | E160: 3145.85 | F160: 2278 | G160: 0 | M160: 5519 | N160: 5010 | O160: 3701 | P160: 2680 | R160: 4691.15 | S160: 4258.5 | T160: 3145.85 | U160: 2278
A161: 24 | C161: 4755.75 | D161: 4316.3 | E161: 3180.7 | F161: 2302.65 | G161: 0 | M161: 5595 | N161: 5078 | O161: 3742 | P161: 2709 | R161: 4755.75 | S161: 4316.3 | T161: 3180.7 | U161: 2302.65
A162: 25 | C162: 4821.2 | D162: 4374.1 | E162: 3216.4 | F162: 2328.15 | G162: 0 | M162: 5672 | N162: 5146 | O162: 3784 | P162: 2739 | R162: 4821.2 | S162: 4374.1 | T162: 3216.4 | U162: 2328.15
A163: 26 | C163: 4915.55 | D163: 4462.5 | E163: 3271.65 | F163: 2367.25 | G163: 0 | M163: 5783 | N163: 5250 | O163: 3849 | P163: 2785 | R163: 4915.55 | S163: 4462.5 | T163: 3271.65 | U163: 2367.25
A164: 27 | C164: 5012.45 | D164: 4551.75 | E164: 3326.9 | F164: 2408.05 | G164: 0 | M164: 5897 | N164: 5355 | O164: 3914 | P164: 2833 | R164: 5012.45 | S164: 4551.75 | T164: 3326.9 | U164: 2408.05
A165: 28 | C165: 5115.3 | D165: 4642.7 | E165: 3383.85 | F165: 2449.7 | G165: 0 | M165: 6018 | N165: 5462 | O165: 3981 | P165: 2882 | R165: 5115.3 | S165: 4642.7 | T165: 3383.85 | U165: 2449.7
A166: 29 | C166: 5223.25 | D166: 4739.6 | E166: 3445.05 | F166: 2494.75 | G166: 0 | M166: 6145 | N166: 5576 | O166: 4053 | P166: 2935 | R166: 5223.25 | S166: 4739.6 | T166: 3445.05 | U166: 2494.75
A167: 30 | C167: 5333.75 | D167: 4842.45 | E167: 3509.65 | F167: 2541.5 | G167: 0 | M167: 6275 | N167: 5697 | O167: 4129 | P167: 2990 | R167: 5333.75 | S167: 4842.45 | T167: 3509.65 | U167: 2541.5
A168: 31 | C168: 5446.8 | D168: 4944.45 | E168: 3576.8 | F168: 2589.1 | G168: 0 | M168: 6408 | N168: 5817 | O168: 4208 | P168: 3046 | R168: 5446.8 | S168: 4944.45 | T168: 3576.8 | U168: 2589.1
A169: 32 | C169: 5565.8 | D169: 5051.55 | E169: 3643.95 | F169: 2638.4 | G169: 0 | M169: 6548 | N169: 5943 | O169: 4287 | P169: 3104 | R169: 5565.8 | S169: 5051.55 | T169: 3643.95 | U169: 2638.4
A170: 33 | C170: 5687.35 | D170: 5162.9 | E170: 3717.9 | F170: 2690.25 | G170: 0 | M170: 6691 | N170: 6074 | O170: 4374 | P170: 3165 | R170: 5687.35 | S170: 5162.9 | T170: 3717.9 | U170: 2690.25
A171: 34 | C171: 5814 | D171: 5275.95 | E171: 3790.15 | F171: 2743.8 | G171: 0 | M171: 6840 | N171: 6207 | O171: 4459 | P171: 3228 | R171: 5814 | S171: 5275.95 | T171: 3790.15 | U171: 2743.8
A172: 35 | C172: 5943.2 | D172: 5395.8 | E172: 3869.2 | F172: 2801.6 | G172: 0 | M172: 6992 | N172: 6348 | O172: 4552 | P172: 3296 | R172: 5943.2 | S172: 5395.8 | T172: 3869.2 | U172: 2801.6
A173: 36 | C173: 6078.35 | D173: 5516.5 | E173: 3949.95 | F173: 2858.55 | G173: 0 | M173: 7151 | N173: 6490 | O173: 4647 | P173: 3363 | R173: 6078.35 | S173: 5516.5 | T173: 3949.95 | U173: 2858.55
A174: 37 | C174: 6216.05 | D174: 5640.6 | E174: 4031.55 | F174: 2918.05 | G174: 0 | M174: 7313 | N174: 6636 | O174: 4743 | P174: 3433 | R174: 6216.05 | S174: 5640.6 | T174: 4031.55 | U174: 2918.05
A175: 38 | C175: 6357.15 | D175: 5771.5 | E175: 4116.55 | F175: 2979.25 | G175: 0 | M175: 7479 | N175: 6790 | O175: 4843 | P175: 3505 | R175: 6357.15 | S175: 5771.5 | T175: 4116.55 | U175: 2979.25
A176: 39 | C176: 6504.2 | D176: 5904.1 | E176: 4203.25 | F176: 3043 | G176: 0 | M176: 7652 | N176: 6946 | O176: 4945 | P176: 3580 | R176: 6504.2 | S176: 5904.1 | T176: 4203.25 | U176: 3043
A177: 40 | C177: 6652.95 | D177: 6039.25 | E177: 4291.65 | F177: 3105.9 | G177: 0 | M177: 7827 | N177: 7105 | O177: 5049 | P177: 3654 | R177: 6652.95 | S177: 6039.25 | T177: 4291.65 | U177: 3105.9
A178: 41 | C178: 6807.65 | D178: 6177.8 | E178: 4383.45 | F178: 3173.05 | G178: 0 | M178: 8009 | N178: 7268 | O178: 5157 | P178: 3733 | R178: 6807.65 | S178: 6177.8 | T178: 4383.45 | U178: 3173.05
A179: 42 | C179: 6962.35 | D179: 6318.9 | E179: 4480.35 | F179: 3241.9 | G179: 0 | M179: 8191 | N179: 7434 | O179: 5271 | P179: 3814 | R179: 6962.35 | S179: 6318.9 | T179: 4480.35 | U179: 3241.9
A180: 43 | C180: 7126.4 | D180: 6465.95 | E180: 4578.1 | F180: 3315.85 | G180: 0 | M180: 8384 | N180: 7607 | O180: 5386 | P180: 3901 | R180: 7126.4 | S180: 6465.95 | T180: 4578.1 | U180: 3315.85
A181: 44 | C181: 7287.9 | D181: 6615.55 | E181: 4679.25 | F181: 3388.1 | G181: 0 | M181: 8574 | N181: 7783 | O181: 5505 | P181: 3986 | R181: 7287.9 | S181: 6615.55 | T181: 4679.25 | U181: 3388.1
A182: 45 | C182: 7458.75 | D182: 6771.1 | E182: 4782.95 | F182: 3462.9 | G182: 0 | M182: 8775 | N182: 7966 | O182: 5627 | P182: 4074 | R182: 7458.75 | S182: 6771.1 | T182: 4782.95 | U182: 3462.9
A183: 46 | C183: 7633 | D183: 6926.65 | E183: 4888.35 | F183: 3537.7 | G183: 0 | M183: 8980 | N183: 8149 | O183: 5751 | P183: 4162 | R183: 7633 | S183: 6926.65 | T183: 4888.35 | U183: 3537.7
A184: 47 | C184: 7809.8 | D184: 7086.45 | E184: 4998 | F184: 3618.45 | G184: 0 | M184: 9188 | N184: 8337 | O184: 5880 | P184: 4257 | R184: 7809.8 | S184: 7086.45 | T184: 4998 | U184: 3618.45
A185: 48 | C185: 7990 | D185: 7250.5 | E185: 5108.5 | F185: 3697.5 | G185: 0 | M185: 9400 | N185: 8530 | O185: 6010 | P185: 4350 | R185: 7990 | S185: 7250.5 | T185: 5108.5 | U185: 3697.5
A186: 49 | C186: 8175.3 | D186: 7417.95 | E186: 5221.55 | F186: 3779.1 | G186: 0 | M186: 9618 | N186: 8727 | O186: 6143 | P186: 4446 | R186: 8175.3 | S186: 7417.95 | T186: 5221.55 | U186: 3779.1
A187: 50 | C187: 8361.45 | D187: 7589.65 | E187: 5338 | F187: 3863.25 | G187: 0 | M187: 9837 | N187: 8929 | O187: 6280 | P187: 4545 | R187: 8361.45 | S187: 7589.65 | T187: 5338 | U187: 3863.25
A188: 51 | C188: 8554.4 | D188: 7763.9 | E188: 5454.45 | F188: 3949.1 | G188: 0 | M188: 10064 | N188: 9134 | O188: 6417 | P188: 4646 | R188: 8554.4 | S188: 7763.9 | T188: 5454.45 | U188: 3949.1
A189: 52 | C189: 8752.45 | D189: 7941.55 | E189: 5576.85 | F189: 4037.5 | G189: 0 | M189: 10297 | N189: 9343 | O189: 6561 | P189: 4750 | R189: 8752.45 | S189: 7941.55 | T189: 5576.85 | U189: 4037.5
A190: 53 | C190: 8951.35 | D190: 8124.3 | E190: 5701.8 | F190: 4127.6 | G190: 0 | M190: 10531 | N190: 9558 | O190: 6708 | P190: 4856 | R190: 8951.35 | S190: 8124.3 | T190: 5701.8 | U190: 4127.6
A191: 54 | C191: 9155.35 | D191: 8307.05 | E191: 5827.6 | F191: 4217.7 | G191: 0 | M191: 10771 | N191: 9773 | O191: 6856 | P191: 4962 | R191: 9155.35 | S191: 8307.05 | T191: 5827.6 | U191: 4217.7
A192: 55 | C192: 9366.15 | D192: 8499.15 | E192: 5955.95 | F192: 4312.05 | G192: 0 | M192: 11019 | N192: 9999 | O192: 7007 | P192: 5073 | R192: 9366.15 | S192: 8499.15 | T192: 5955.95 | U192: 4312.05
A193: 56 | C193: 9575.25 | D193: 8691.25 | E193: 6088.55 | F193: 4407.25 | G193: 0 | M193: 11265 | N193: 10225 | O193: 7163 | P193: 5185 | R193: 9575.25 | S193: 8691.25 | T193: 6088.55 | U193: 4407.25
A194: 57 | C194: 9792.85 | D194: 8886.75 | E194: 6223.7 | F194: 4505.85 | G194: 0 | M194: 11521 | N194: 10455 | O194: 7322 | P194: 5301 | R194: 9792.85 | S194: 8886.75 | T194: 6223.7 | U194: 4505.85
A195: 58 | C195: 10013 | D195: 9085.65 | E195: 6360.55 | F195: 4605.3 | G195: 0 | M195: 11780 | N195: 10689 | O195: 7483 | P195: 5418 | R195: 10013 | S195: 9085.65 | T195: 6360.55 | U195: 4605.3
A196: 59 | C196: 10235.7 | D196: 9289.65 | E196: 6500.8 | F196: 4703.9 | G196: 0 | M196: 12042 | N196: 10929 | O196: 7648 | P196: 5534 | R196: 10235.7 | S196: 9289.65 | T196: 6500.8 | U196: 4703.9
A197: 60 | C197: 10465.2 | D197: 9497.05 | E197: 6643.6 | F197: 4809.3 | G197: 0 | M197: 12312 | N197: 11173 | O197: 7816 | P197: 5658 | R197: 10465.2 | S197: 9497.05 | T197: 6643.6 | U197: 4809.3
A198: 61 | C198: 11660.3 | D198: 10582.5 | E198: 7393.3 | F198: 5351.6 | G198: 0 | M198: 13718 | N198: 12450 | O198: 8698 | P198: 6296 | R198: 11660.3 | S198: 10582.5 | T198: 7393.3 | U198: 5351.6
A199: 62 | C199: 12954 | D199: 11755.5 | E199: 8211 | F199: 5943.2 | G199: 0 | M199: 15240 | N199: 13830 | O199: 9660 | P199: 6992 | R199: 12954 | S199: 11755.5 | T199: 8211 | U199: 5943.2
A200: 63 | C200: 14347.15 | D200: 13019.45 | E200: 9092.45 | F200: 6582.4 | G200: 0 | M200: 16879 | N200: 15317 | O200: 10697 | P200: 7744 | R200: 14347.15 | S200: 13019.45 | T200: 9092.45 | U200: 6582.4
A201: 64 | C201: 15836.35 | D201: 14373.5 | E201: 10041.05 | F201: 7266.65 | G201: 0 | M201: 18631 | N201: 16910 | O201: 11813 | P201: 8549 | R201: 15836.35 | S201: 14373.5 | T201: 10041.05 | U201: 7266.65
A202: 65 | C202: 17425 | D202: 15811.7 | E202: 11052.55 | F202: 7998.5 | G202: 0 | M202: 20500 | N202: 18602 | O202: 13003 | P202: 9410 | R202: 17425 | S202: 15811.7 | T202: 11052.55 | U202: 7998.5
A203: 66 | C203: 19111.4 | D203: 17341.7 | E203: 12132.05 | F203: 8780.5 | G203: 0 | M203: 22484 | N203: 20402 | O203: 14273 | P203: 10330 | R203: 19111.4 | S203: 17341.7 | T203: 12132.05 | U203: 8780.5
A204: 67 | C204: 20894.7 | D204: 18960.95 | E204: 13277.85 | F204: 9610.95 | G204: 0 | M204: 24582 | N204: 22307 | O204: 15621 | P204: 11307 | R204: 20894.7 | S204: 18960.95 | T204: 13277.85 | U204: 9610.95
A205: 68 | C205: 22774.9 | D205: 20667.75 | E205: 14487.4 | F205: 10483.9 | G205: 0 | M205: 26794 | N205: 24315 | O205: 17044 | P205: 12334 | R205: 22774.9 | S205: 20667.75 | T205: 14487.4 | U205: 10483.9
A206: 69 | C206: 24751.15 | D206: 22464.65 | E206: 15762.4 | F206: 11408.7 | G206: 0 | M206: 29119 | N206: 26429 | O206: 18544 | P206: 13422 | R206: 24751.15 | S206: 22464.65 | T206: 15762.4 | U206: 11408.7
A207: 70 | C207: 26829.4 | D207: 24348.25 | E207: 17104.55 | F207: 12379.4 | G207: 0 | M207: 31564 | N207: 28645 | O207: 20123 | P207: 14564 | R207: 26829.4 | S207: 24348.25 | T207: 17104.55 | U207: 12379.4
A208: 71 | C208: 29003.7 | D208: 26320.25 | E208: 18511.3 | F208: 13398.55 | G208: 0 | M208: 34122 | N208: 30965 | O208: 21778 | P208: 15763 | R208: 29003.7 | S208: 26320.25 | T208: 18511.3 | U208: 13398.55
A209: 72 | C209: 31274.05 | D209: 28383.2 | E209: 19980.1 | F209: 14461.9 | G209: 0 | M209: 36793 | N209: 33392 | O209: 23506 | P209: 17014 | R209: 31274.05 | S209: 28383.2 | T209: 19980.1 | U209: 14461.9
A210: 73 | C210: 33645.55 | D210: 30532 | E210: 21518.6 | F210: 15572.85 | G210: 0 | M210: 39583 | N210: 35920 | O210: 25316 | P210: 18321 | R210: 33645.55 | S210: 30532 | T210: 21518.6 | U210: 15572.85
A211: 74 | C211: 36110.55 | D211: 32771.75 | E211: 23120.85 | F211: 16734.8 | G211: 0 | M211: 42483 | N211: 38555 | O211: 27201 | P211: 19688 | R211: 36110.55 | S211: 32771.75 | T211: 23120.85 | U211: 16734.8
A212: 75 | C212: 38675.85 | D212: 35099.9 | E212: 24787.7 | F212: 17939.25 | G212: 0 | M212: 45501 | N212: 41294 | O212: 29162 | P212: 21105 | R212: 38675.85 | S212: 35099.9 | T212: 24787.7 | U212: 17939.25
A213: 76 | C213: 38675.85 | D213: 35099.9 | E213: 24787.7 | F213: 17939.25 | G213: 0 | M213: 45501 | N213: 41294 | O213: 29162 | P213: 21105 | R213: 38675.85 | S213: 35099.9 | T213: 24787.7 | U213: 17939.25
A214: 77 | C214: 38675.85 | D214: 35099.9 | E214: 24787.7 | F214: 17939.25 | G214: 0 | M214: 45501 | N214: 41294 | O214: 29162 | P214: 21105 | R214: 38675.85 | S214: 35099.9 | T214: 24787.7 | U214: 17939.25
A215: 78 | C215: 38675.85 | D215: 35099.9 | E215: 24787.7 | F215: 17939.25 | G215: 0 | M215: 45501 | N215: 41294 | O215: 29162 | P215: 21105 | R215: 38675.85 | S215: 35099.9 | T215: 24787.7 | U215: 17939.25
A216: 79 | C216: 38675.85 | D216: 35099.9 | E216: 24787.7 | F216: 17939.25 | G216: 0 | M216: 45501 | N216: 41294 | O216: 29162 | P216: 21105 | R216: 38675.85 | S216: 35099.9 | T216: 24787.7 | U216: 17939.25
A217: 80 | C217: 38675.85 | D217: 35099.9 | E217: 24787.7 | F217: 17939.25 | G217: 0 | M217: 45501 | N217: 41294 | O217: 29162 | P217: 21105 | R217: 38675.85 | S217: 35099.9 | T217: 24787.7 | U217: 17939.25
A218: 81 | C218: 38675.85 | D218: 35099.9 | E218: 24787.7 | F218: 17939.25 | G218: 0 | M218: 45501 | N218: 41294 | O218: 29162 | P218: 21105 | R218: 38675.85 | S218: 35099.9 | T218: 24787.7 | U218: 17939.25
A219: 82 | C219: 38675.85 | D219: 35099.9 | E219: 24787.7 | F219: 17939.25 | G219: 0 | M219: 45501 | N219: 41294 | O219: 29162 | P219: 21105 | R219: 38675.85 | S219: 35099.9 | T219: 24787.7 | U219: 17939.25
A220: 83 | C220: =R220 -> 38675.85 | D220: =S220 -> 35099.9 | E220: =T220 -> 24787.7 | F220: =U220 -> 17939.25 | G220: =Q220*$K$6 -> 0 | M220: 45501 | N220: 41294 | O220: 29162 | P220: 21105 | R220: =M220*0.85 -> 38675.85 | S220: =N220*0.85 -> 35099.9 | T220: =O220*0.85 -> 24787.7 | U220: =P220*0.85 -> 17939.25
A221: 84 | B221: o más | C221: 38675.85 | D221: 35099.9 | E221: 24787.7 | F221: 17939.25 | G221: 0 | M221: 45501 | N221: 41294 | O221: 29162 | P221: 21105 | R221: 38675.85 | S221: 35099.9 | T221: 24787.7 | U221: 17939.25
A222: 1 | B222: Hijo | C222: 1982.2 | D222: 1800.3 | E222: 1346.4 | F222: 975.8 | G222: 0 | M222: 2332 | N222: 2118 | O222: 1584 | P222: 1148 | R222: 1982.2 | S222: 1800.3 | T222: 1346.4 | U222: 975.8
A223: 2 | B223: Hijos | C223: 3371.1 | D223: 3057.45 | E223: 2288.2 | F223: 1658.35 | G223: 0 | M223: 3966 | N223: 3597 | O223: 2692 | P223: 1951 | R223: 3371.1 | S223: 3057.45 | T223: 2288.2 | U223: 1658.35
A224: 3 | B224: Hijos o más | C224: 4757.45 | D224: 4318.85 | E224: 3228.3 | F224: 2336.65 | G224: 0 | M224: 5597 | N224: 5081 | O224: 3798 | P224: 2749 | R224: 4757.45 | S224: 4318.85 | T224: 3228.3 | U224: 2336.65
A226: BUPA GLOBAL PREMIER - MENSUALES
A227: EDAD
C228: 2000 | D228: 3500 | E228: 5000
A229: 18 | C229: =+C155*$K$2 -> 411.026 | D229: 373.184 | E229: 279.174 | F229: 201.9826667 | G229: 0
A230: 19 | C230: =+C156*$K$2 -> 416.262 | D230: 377.7853333 | E230: 281.7126667 | F230: 203.8866667 | G230: 0
A231: 20 | C231: =+C157*$K$2 -> 421.3393333 | D231: 382.3073333 | E231: 284.648 | F231: 206.0286667 | G231: 0
A232: 21 | C232: =+C158*$K$2 -> 426.734 | D232: 387.0673333 | E232: 287.5833333 | F232: 208.1706667 | G232: 0
A233: 22 | C233: =+C159*$K$2 -> 432.0493333 | D233: 392.3826667 | E233: 290.5186667 | F233: 210.392 | G233: 0
A234: 23 | C234: =+C160*$K$2 -> 437.8406667 | D234: 397.46 | E234: 293.6126667 | F234: 212.6133333 | G234: 0
A235: 24 | C235: =+C161*$K$2 -> 443.87 | D235: 402.8546667 | E235: 296.8653333 | F235: 214.914 | G235: 0
A236: 25 | C236: =+C162*$K$2 -> 449.9786667 | D236: 408.2493333 | E236: 300.1973333 | F236: 217.294 | G236: 0
A237: 26 | C237: =+C163*$K$2 -> 458.7846667 | D237: 416.5 | E237: 305.354 | F237: 220.9433333 | G237: 0
A238: 27 | C238: =+C164*$K$2 -> 467.8286667 | D238: 424.83 | E238: 310.5106667 | F238: 224.7513333 | G238: 0
A239: 28 | C239: =+C165*$K$2 -> 477.428 | D239: 433.3186667 | E239: 315.826 | F239: 228.6386667 | G239: 0
A240: 29 | C240: =+C166*$K$2 -> 487.5033333 | D240: 442.3626667 | E240: 321.538 | F240: 232.8433333 | G240: 0
A241: 30 | C241: =+C167*$K$2 -> 497.8166667 | D241: 451.962 | E241: 327.5673333 | F241: 237.2066667 | G241: 0
A242: 31 | C242: =+C168*$K$2 -> 508.368 | D242: 461.482 | E242: 333.8346667 | F242: 241.6493333 | G242: 0
A243: 32 | C243: =+C169*$K$2 -> 519.4746667 | D243: 471.478 | E243: 340.102 | F243: 246.2506667 | G243: 0
A244: 33 | C244: =+C170*$K$2 -> 530.8193333 | D244: 481.8706667 | E244: 347.004 | F244: 251.09 | G244: 0
A245: 34 | C245: =+C171*$K$2 -> 542.64 | D245: 492.422 | E245: 353.7473333 | F245: 256.088 | G245: 0
A246: 35 | C246: =+C172*$K$2 -> 554.6986667 | D246: 503.608 | E246: 361.1253333 | F246: 261.4826667 | G246: 0
A247: 36 | C247: =+C173*$K$2 -> 567.3126667 | D247: 514.8733333 | E247: 368.662 | F247: 266.798 | G247: 0
A248: 37 | C248: =+C174*$K$2 -> 580.1646667 | D248: 526.456 | E248: 376.278 | F248: 272.3513333 | G248: 0
A249: 38 | C249: =+C175*$K$2 -> 593.334 | D249: 538.6733333 | E249: 384.2113333 | F249: 278.0633333 | G249: 0
A250: 39 | C250: =+C176*$K$2 -> 607.0586667 | D250: 551.0493333 | E250: 392.3033333 | F250: 284.0133333 | G250: 0
A251: 40 | C251: =+C177*$K$2 -> 620.942 | D251: 563.6633333 | E251: 400.554 | F251: 289.884 | G251: 0
A252: 41 | C252: =+C178*$K$2 -> 635.3806667 | D252: 576.5946667 | E252: 409.122 | F252: 296.1513333 | G252: 0
A253: 42 | C253: =+C179*$K$2 -> 649.8193333 | D253: 589.764 | E253: 418.166 | F253: 302.5773333 | G253: 0
A254: 43 | C254: =+C180*$K$2 -> 665.1306667 | D254: 603.4886667 | E254: 427.2893333 | F254: 309.4793333 | G254: 0
A255: 44 | C255: =+C181*$K$2 -> 680.204 | D255: 617.4513333 | E255: 436.73 | F255: 316.2226667 | G255: 0
A256: 45 | C256: =+C182*$K$2 -> 696.15 | D256: 631.9693333 | E256: 446.4086667 | F256: 323.204 | G256: 0
A257: 46 | C257: =+C183*$K$2 -> 712.4133333 | D257: 646.4873333 | E257: 456.246 | F257: 330.1853333 | G257: 0
A258: 47 | C258: =+C184*$K$2 -> 728.9146667 | D258: 661.402 | E258: 466.48 | F258: 337.722 | G258: 0
A259: 48 | C259: =+C185*$K$2 -> 745.7333333 | D259: 676.7133333 | E259: 476.7933333 | F259: 345.1 | G259: 0
A260: 49 | C260: =+C186*$K$2 -> 763.028 | D260: 692.342 | E260: 487.3446667 | F260: 352.716 | G260: 0
A261: 50 | C261: =+C187*$K$2 -> 780.402 | D261: 708.3673333 | E261: 498.2133333 | F261: 360.57 | G261: 0
A262: 51 | C262: =+C188*$K$2 -> 798.4106667 | D262: 724.6306667 | E262: 509.082 | F262: 368.5826667 | G262: 0
A263: 52 | C263: =+C189*$K$2 -> 816.8953333 | D263: 741.2113333 | E263: 520.506 | F263: 376.8333333 | G263: 0
A264: 53 | C264: =+C190*$K$2 -> 835.4593333 | D264: 758.268 | E264: 532.168 | F264: 385.2426667 | G264: 0
A265: 54 | C265: =+C191*$K$2 -> 854.4993333 | D265: 775.3246667 | E265: 543.9093333 | F265: 393.652 | G265: 0
A266: 55 | C266: =+C192*$K$2 -> 874.174 | D266: 793.254 | E266: 555.8886667 | F266: 402.458 | G266: 0
A267: 56 | C267: =+C193*$K$2 -> 893.69 | D267: 811.1833333 | E267: 568.2646667 | F267: 411.3433333 | G267: 0
A268: 57 | C268: =+C194*$K$2 -> 913.9993333 | D268: 829.43 | E268: 580.8786667 | F268: 420.546 | G268: 0
A269: 58 | C269: =+C195*$K$2 -> 934.5466667 | D269: 847.994 | E269: 593.6513333 | F269: 429.828 | G269: 0
A270: 59 | C270: =+C196*$K$2 -> 955.332 | D270: 867.034 | E270: 606.7413333 | F270: 439.0306667 | G270: 0
A271: 60 | C271: =+C197*$K$2 -> 976.752 | D271: 886.3913333 | E271: 620.0693333 | F271: 448.868 | G271: 0
A272: 61 | C272: =+C198*$K$2 -> 1088.294667 | D272: 987.7 | E272: 690.0413333 | F272: 499.4826667 | G272: 0
A273: 62 | C273: =+C199*$K$2 -> 1209.04 | D273: 1097.18 | E273: 766.36 | F273: 554.6986667 | G273: 0
A274: 63 | C274: =+C200*$K$2 -> 1339.067333 | D274: 1215.148667 | E274: 848.6286667 | F274: 614.3573333 | G274: 0
... 1135 more rows
